bitfinex/quotes_BTCUSD_20251215
["timestamp","ask_amount","ask_price","bid_price","bid_amount"]
[1765829738471,0.24428309,85966.0,85964.0,0.04894]
[1765829738667,0.24428309,85966.0,85963.0,0.23265798]
[1765829738668,0.0116325,85966.0,85965.0,0.15274]
[1765829738886,0.01163223,85968.0,85965.0,0.15274]
[1765829739111,0.23264741,85967.0,85965.0,0.03488]
[1765829739336,0.23264741,85967.0,85966.0,0.06892]
[1765829739522,0.23264741,85967.0,85965.0,0.03488]
[1765829740227,0.01163331,85960.0,85956.0,0.001]
[1765829740405,0.01163331,85960.0,85959.0,0.04894]
[1765829740804,0.00998965,85961.0,85959.0,0.11786]
[1765829741005,0.00998965,85961.0,85960.0,0.04894]
[1765829741211,0.00998965,85961.0,85960.0,0.11786]
[1765829741995,0.00998965,85961.0,85960.0,0.35052635]
[1765829742341,0.04259211,85964.0,85960.0,0.35052635]
[1765829742342,0.01163291,85963.0,85960.0,0.11786]
[1765829742511,0.04259211,85964.0,85959.0,0.003]
[1765829742512,0.23266094,85962.0,85961.0,0.06892]
[1765829742714,0.23266094,85962.0,85961.0,0.15274]
[1765829742954,0.23266094,85962.0,85959.0,0.002]
[1765829742955,0.23266635,85960.0,85959.0,0.002]
[1765829743141,0.25604887,85960.0,85959.0,0.002]
[1765829743336,0.25604887,85960.0,85946.0,0.06892]
[1765829743337,0.01163656,85936.0,85928.0,0.03488]
[1765829743537,0.25597214,85936.0,85928.0,0.04651765]
[1765829743736,0.23275029,85929.0,85928.0,0.03488]
[1765829744148,0.24273994,85929.0,85928.0,0.03488]
[1765829744359,0.24273994,85929.0,85928.0,0.08382]
[1765829744760,0.24273994,85929.0,85928.0,0.08682]
[1765829744937,0.24273994,85929.0,85928.0,0.08382]
[1765829745294,0.00998965,85929.0,85928.0,0.08382]
[1765829745438,0.00998965,85929.0,85928.0,0.316573]
[1765829745653,0.00998965,85929.0,85928.0,0.385493]
[1765829746399,0.00998965,85929.0,85928.0,0.388493]
[1765829746634,0.00998965,85929.0,85928.0,0.390493]
[1765829747088,0.24273994,85929.0,85928.0,0.003]
[1765829747297,0.25349219,85929.0,85928.0,0.003]
[1765829747506,0.25349219,85929.0,85928.0,0.005]
[1765829748044,0.2427589,85922.0,85921.0,0.03488]
[1765829748450,0.25351927,85922.0,85921.0,0.08382]
[1765829748874,0.02075002,85922.0,85921.0,0.15274]
[1765829749081,0.01076037,85923.0,85921.0,0.15274]
[1765829749294,0.24352691,85923.0,85922.0,0.06892]
[1765829749565,0.24352691,85923.0,85922.0,0.11786]
[1765829749964,0.23276925,85922.0,85921.0,0.03488]
[1765829750187,0.25351927,85922.0,85921.0,0.03488]
[1765829750387,0.25351927,85922.0,85921.0,0.08382]
[1765829750635,0.25351927,85922.0,85921.0,0.15474]
[1765829750838,0.25351927,85922.0,85921.0,0.03688]
[1765829751070,0.25351927,85922.0,85921.0,0.15474]
[1765829751184,0.25351927,85922.0,85921.0,0.002]
[1765829752039,0.26528927,85922.0,85921.0,0.002]
[1765829752402,0.25351927,85922.0,85921.0,0.005]
[1765829752947,0.25351927,85922.0,85921.0,0.003]
[1765829753105,0.02075002,85922.0,85921.0,0.003]
[1765829753507,0.00998965,85913.0,85912.0,0.03488]
[1765829754094,0.02075002,85913.0,85912.0,0.08382]
[1765829754339,0.02075002,85913.0,85912.0,0.15274]
[1765829754539,0.24278329,85913.0,85912.0,0.08382]
[1765829754739,0.25354366,85913.0,85912.0,0.08582]
[1765829754921,0.25354366,85913.0,85912.0,0.15774]
[1765829755133,0.24278329,85913.0,85912.0,0.15774]
[1765829755339,0.24278329,85913.0,85912.0,0.005]
[1765829757509,0.25633364,85913.0,85912.0,0.005]
[1765829757714,0.25455329,85913.0,85912.0,0.005]
[1765829758818,0.26534483,85913.0,85912.0,0.005]
[1765829759004,0.26534483,85913.0,85912.0,0.003]
[1765829759406,0.55604483,85913.0,85912.0,0.004]
[1765829759912,0.55604483,85913.0,85912.0,0.001]
[1765829760056,0.55604483,85913.0,85912.0,0.002]
[1765829760942,0.56781483,85913.0,85912.0,0.002]
[1765829761148,1.59877187,85913.0,85912.0,0.002]
[1765829761319,1.59877187,85913.0,85912.0,1e-08]
[1765829761320,1.52613752,85913.0,85912.0,1e-08]
[1765829761521,1.80037371,85913.0,85912.0,1e-08]
[1765829761829,1.75893116,85913.0,85912.0,1e-08]
[1765829762335,1.64260001,85913.0,85912.0,1e-08]
[1765829762535,1.64360001,85913.0,85912.0,1e-08]
[1765829762710,1.64360001,85913.0,85893.0,1e-08]
[1765829762711,0.29098492,85894.0,85893.0,1e-08]
[1765829763026,0.30177646,85894.0,85893.0,1e-08]
[1765829763190,0.31354646,85894.0,85893.0,1e-08]
[1765829766239,0.68581034,85894.0,85893.0,1e-08]
[1765829766478,0.71057713,85894.0,85893.0,1e-08]
[1765829766836,0.59424598,85894.0,85893.0,1e-08]
[1765829767492,0.59524598,85894.0,85893.0,1e-08]
[1765829770659,0.60199598,85894.0,85893.0,1e-08]
[1765829770931,0.61376598,85894.0,85893.0,1e-08]
[1765829771270,0.58347598,85894.0,85893.0,1e-08]
[1765829771469,0.60199598,85894.0,85893.0,1e-08]
[1765829772247,0.56171633,85894.0,85893.0,1e-08]
[1765829772454,0.57348633,85894.0,85893.0,1e-08]
[1765829772615,0.59524598,85894.0,85893.0,1e-08]
[1765829772796,0.58347598,85894.0,85893.0,1e-08]
[1765829775174,0.59524598,85894.0,85893.0,1e-08]
[1765829775578,0.58347598,85894.0,85893.0,1e-08]
[1765829776540,0.71157713,85894.0,85893.0,1e-08]
[1765829777071,0.58347598,85894.0,85893.0,1e-08]
[1765829777551,0.59524598,85894.0,85893.0,1e-08]
[1765829777691,0.59524598,85894.0,85893.0,0.00100001]
[1765829778290,0.61376598,85894.0,85893.0,0.00100001]
[1765829778485,0.58347598,85894.0,85893.0,0.00100001]
[1765829778685,0.59022598,85894.0,85893.0,0.00100001]
[1765829778928,0.57170598,85894.0,85893.0,0.00100001]
[1765829779135,0.24544765,85894.0,85893.0,0.00100001]
[1765829779341,0.23384513,85894.0,85893.0,0.00100001]
[1765829779511,0.24383478,85894.0,85893.0,0.00100001]
[1765829779716,0.23384513,85894.0,85893.0,0.00100001]
[1765829780065,0.26638208,85894.0,85893.0,0.00100001]
[1765829780827,0.25461208,85894.0,85893.0,0.00100001]
[1765829781455,0.26638208,85894.0,85893.0,0.00100001]
[1765829782585,0.25461208,85894.0,85893.0,0.00100001]
[1765829782987,0.24462243,85894.0,85893.0,0.11869001]
[1765829783189,0.001,85894.0,85893.0,0.36340685]
[1765829783724,0.001,85894.0,85893.0,0.35153785]
[1765829784130,0.0107949,85908.0,85893.0,0.35153785]
[1765829784131,0.2444474,85909.0,85901.0,0.0116413]
[1765829784261,0.24445412,85906.0,85904.0,0.04506]
[1765829784481,0.0107949,85905.0,85904.0,0.04506]
[1765829784690,0.01164049,85907.0,85904.0,0.11769]
[1765829784933,0.01164049,85907.0,85906.0,0.08157]
[1765829785167,0.00998965,85908.0,85906.0,0.31437999]
[1765829785356,0.00998965,85908.0,85907.0,0.04506]
[1765829785686,0.02078455,85908.0,85907.0,0.11769]
[1765829785908,0.01164117,85902.0,85898.0,0.04815171]
[1765829786083,0.2444644,85903.0,85900.0,0.24446839]
[1765829786382,0.23283158,85899.0,85898.0,0.03651]
[1765829786737,0.23283158,85899.0,85898.0,0.08157]
[1765829787156,0.23283158,85899.0,85898.0,0.1542]
[1765829787661,0.23283158,85899.0,85898.0,0.1552]
[1765829787859,0.02485191,85901.0,85898.0,0.1552]
[1765829788210,0.03484156,85908.0,85907.0,0.23280989]
[1765829788404,0.01078884,85912.0,85911.0,0.08157]
[1765829788612,0.24358518,85912.0,85911.0,0.08157]
[1765829788859,0.24358518,85912.0,85911.0,0.1542]
[1765829789358,0.01078884,85912.0,85911.0,0.1542]
[1765829789553,0.23279563,85913.0,85911.0,0.1552]
[1765829789759,0.01078884,85912.0,85911.0,0.28094811]
[1765829789969,0.01078884,85914.0,85913.0,0.23279364]
[1765829790178,0.05263736,85922.0,85913.0,0.23279364]
[1765829790179,0.03100925,85927.0,85924.0,0.01163819]
[1765829790387,0.24438916,85929.0,85928.0,0.08157]
[1765829790588,0.24440426,85924.0,85921.0,0.01163859]
[1765829790788,0.00998965,85922.0,85920.0,0.28092283]
[1765829790986,0.00998965,85922.0,85920.0,0.10465]
[1765829791403,0.00998965,85922.0,85920.0,0.03651]
[1765829791547,0.00998965,85913.0,85911.0,0.003]
[1765829791751,0.00998965,85913.0,85907.0,0.06814]
[1765829791752,0.24443908,85911.0,85907.0,0.2444503]
[1765829791985,0.2328126,85906.0,85905.0,0.03584]
[1765829792189,0.02163055,85904.0,85901.0,0.01852]
[1765829792388,0.00998965,85904.0,85901.0,0.0301613]
[1765829792616,0.00998965,85904.0,85901.0,0.09245]
[1765829792822,0.0116413,85901.0,85898.0,0.03651]
[1765829792994,0.02163055,85904.0,85899.0,0.01164157]
[1765829793176,0.23282605,85902.0,85901.0,0.002]
[1765829793679,0.23283032,85900.0,85898.0,0.04815171]
[1765829793877,0.23283032,85900.0,85899.0,0.07393]
[1765829794173,0.23283032,85900.0,85899.0,0.11944]
[1765829794381,0.00161287,85922.0,85915.0,0.01163941]
[1765829794590,0.00161287,85922.0,85921.0,0.31484196]
[1765829794802,0.25,85930.0,85921.0,0.31484196]
[1765829794803,0.01163697,85933.0,85928.0,0.01163765]
[1765829795006,0.0116371,85932.0,85928.0,0.01163765]
[1765829795209,0.0116371,85932.0,85929.0,0.07393]
[1765829795210,0.01163724,85931.0,85929.0,0.07393]
[1765829795419,0.23274758,85930.0,85929.0,0.07393]
[1765829795839,0.23274758,85930.0,85929.0,0.11944]
[1765829796047,0.01163697,85933.0,85929.0,0.35219018]
[1765829796248,0.30068965,85935.0,85932.0,0.24437926]
[1765829796451,0.30068965,85935.0,85933.0,0.03656]
[1765829796452,0.23273675,85934.0,85933.0,0.03656]
[1765829796752,0.02162553,85941.0,85934.0,0.04551]
[1765829796904,0.23272667,85938.0,85936.0,0.01163656]
[1765829797067,0.01163616,85939.0,85937.0,0.11944]
[1765829797304,0.23272591,85938.0,85937.0,0.07393]
[1765829797507,0.01163656,85936.0,85933.0,0.03656]
[1765829797712,0.23273675,85934.0,85933.0,0.03656]
[1765829798125,0.23273675,85934.0,85933.0,0.08207]
[1765829798327,0.01163629,85938.0,85933.0,0.40037574]
[1765829798526,0.2443622,85938.0,85935.0,0.04551]
[1765829798782,0.01163629,85938.0,85937.0,0.04551]
[1765829799002,0.02162553,85941.0,85937.0,0.04551]
[1765829799160,0.02162553,85941.0,85938.0,0.11944]
[1765829799588,0.02162553,85941.0,85938.0,0.04551]
[1765829799935,0.23272321,85939.0,85938.0,0.04551]
[1765829800132,0.23272591,85938.0,85937.0,0.001]
[1765829800334,0.24271556,85938.0,85937.0,0.001]
[1765829801122,0.24271556,85938.0,85937.0,0.002]
[1765829801332,0.24271556,85938.0,85937.0,0.001]
[1765829801333,0.35367593,85938.0,85937.0,0.001]
[1765829801542,0.23277467,85920.0,85918.0,0.03656]
[1765829801742,0.23277738,85919.0,85918.0,0.03656]
[1765829801919,0.23277738,85919.0,85918.0,0.11049]
[1765829802282,0.01163846,85922.0,85918.0,0.156]
[1765829802486,0.232769,85923.0,85921.0,0.04551]
[1765829802682,0.02162784,85924.0,85922.0,0.04551]
[1765829802926,0.00998965,85924.0,85923.0,0.04551]
[1765829803145,0.00998965,85924.0,85923.0,0.27827654]
[1765829803405,0.24275348,85924.0,85923.0,0.11944]
[1765829803527,0.01163859,85921.0,85918.0,0.03856]
[1765829803931,0.01163859,85921.0,85920.0,0.04551]
[1765829804133,0.24440509,85923.0,85920.0,0.27828465]
[1765829804462,0.24441073,85921.0,85918.0,0.03656]
[1765829804675,0.24441073,85921.0,85919.0,0.07393]
[1765829805302,0.24440509,85923.0,85920.0,0.04551]
[1765829805499,0.02162784,85924.0,85922.0,0.27827841]
[1765829805835,0.01163846,85922.0,85919.0,0.01163886]
[1765829805998,0.01163846,85922.0,85920.0,0.07393]
[1765829806402,0.24440771,85922.0,85921.0,0.04551]
[1765829807674,0.01163846,85922.0,85921.0,0.12044]
[1765829807948,0.24440771,85922.0,85921.0,0.12044]
[1765829808181,0.24440771,85922.0,85921.0,0.04651]
[1765829808316,0.01163846,85922.0,85921.0,0.04651]
[1765829808699,0.01163846,85922.0,85921.0,0.12044]
[1765829808901,0.23276908,85923.0,85921.0,0.12144]
[1765829809103,0.23276908,85923.0,85922.0,0.11944]
[1765829809306,0.23276908,85923.0,85922.0,0.04551]
[1765829809307,0.23072908,85923.0,85922.0,0.04551]
[1765829810147,0.24439938,85925.0,85922.0,0.01163846]
[1765829810351,0.23276617,85924.0,85922.0,0.07393]
[1765829810780,0.24439938,85925.0,85923.0,0.04551]
[1765829810998,0.24439938,85925.0,85924.0,0.11944]
[1765829811194,0.24439758,85926.0,85924.0,0.11944]
[1765829811396,0.01163765,85928.0,85925.0,0.11944]
[1765829811602,0.01163765,85928.0,85905.0,0.38578053]
[1765829811603,0.23276654,85923.0,85921.0,0.001]
[1765829811965,0.01163778,85927.0,85924.0,0.24439992]
[1765829812342,0.01163778,85927.0,85923.0,0.001]
[1765829812343,0.23276138,85925.0,85923.0,0.23276651]
[1765829812499,0.01163792,85926.0,85924.0,0.30769261]
[1765829812825,0.24439354,85927.0,85925.0,0.11944]
[1765829813060,0.24439354,85927.0,85926.0,0.04551]
[1765829813445,0.24439354,85927.0,85926.0,0.11944]
[1765829814711,0.24439354,85927.0,85926.0,0.12044]
[1765829815242,0.24439354,85927.0,85926.0,0.04651]
[1765829816046,0.24439354,85927.0,85926.0,0.04751]
[1765829816257,0.24439354,85927.0,85926.0,0.002]
[1765829816789,0.25438319,85927.0,85926.0,0.002]
[1765829818447,0.25438319,85927.0,85926.0,0.04751]
[1765829818645,0.00998965,85927.0,85926.0,0.12144]
[1765829818807,0.23275571,85927.0,85926.0,0.12144]
[1765829819914,0.24439099,85928.0,85926.0,0.12144]
[1765829820085,0.23275571,85927.0,85926.0,0.002]
[1765829820226,0.51852,85940.0,85932.0,0.0116371]
[1765829820227,0.00998965,85935.0,85932.0,0.0116371]
[1765829820430,0.01078248,85938.0,85937.0,0.23272862]
[1765829820648,0.01078461,85950.0,85949.0,0.23269613]
[1765829820838,0.01078461,85955.0,85954.0,0.23268259]
[1765829821049,0.01163372,85957.0,85954.0,0.04551]
[1765829821266,0.01163385,85956.0,85951.0,0.01163453]
[1765829821478,0.23269342,85950.0,85949.0,0.03656]
[1765829821681,0.23269342,85950.0,85949.0,0.11249]
[1765829821887,0.23269342,85950.0,85949.0,0.16125]
[1765829822311,0.31776076,85950.0,85949.0,0.002]
[1765829822526,0.26522875,85950.0,85949.0,0.002]
[1765829822945,0.23272862,85937.0,85936.0,0.06766]
[1765829823382,0.23272862,85937.0,85936.0,0.11642]
[1765829823591,0.23272862,85937.0,85936.0,0.04876]
[1765829824456,0.23273404,85935.0,85929.0,0.10311]
[1765829824678,0.23273404,85935.0,85929.0,0.11474751]
[1765829824843,0.23273404,85935.0,85929.0,0.10311]
[1765829825042,0.23273404,85935.0,85929.0,0.11474751]
[1765829825319,0.23274233,85932.0,85929.0,0.10311]
[1765829825528,0.0116371,85932.0,85929.0,0.10311]
[1765829825731,0.01163697,85933.0,85930.0,0.06766]
[1765829825983,0.01163697,85933.0,85932.0,0.04876]
[1765829826195,0.24437642,85933.0,85932.0,0.04876]
[1765829826402,0.24437642,85933.0,85932.0,0.11642]
[1765829826820,0.24437642,85933.0,85930.0,0.003]
[1765829826821,0.23274487,85931.0,85930.0,0.003]
[1765829827027,0.33075577,85931.0,85930.0,0.003]
[1765829827257,0.01164022,85909.0,85906.0,0.06766]
[1765829827470,0.01164022,85909.0,85907.0,0.03545]
[1765829827678,0.2444398,85911.0,85908.0,0.04876]
[1765829827879,0.2444398,85911.0,85908.0,0.06766]
[1765829828014,0.2444398,85911.0,85908.0,0.30046622]
[1765829828210,0.2444398,85911.0,85910.0,0.04876]
[1765829828663,0.2444398,85911.0,85910.0,0.11642]
[1765829828816,0.23280245,85910.0,85908.0,0.01164035]
[1765829829016,0.23280245,85910.0,85890.0,0.34928358]
[1765829829017,0.23281531,85905.0,85904.0,0.00130925]
[1765829829222,0.01164185,85897.0,85894.0,0.01164225]
[1765829829470,0.24446147,85904.0,85900.0,0.01164144]
[1765829829829,0.24446746,85901.0,85897.0,0.23283666]
[1765829830033,0.24446746,85901.0,85898.0,0.24447565]
[1765829830243,0.24446746,85901.0,85893.0,0.23384611]
[1765829830244,0.02341171,85898.0,85893.0,0.00100001]
[1765829830440,0.00998965,85894.0,85893.0,0.00100001]
[1765829832086,0.04428524,85894.0,85893.0,0.00100001]
[1765829832284,0.33497406,85894.0,85893.0,0.00100001]
[1765829832480,0.45130521,85894.0,85893.0,0.00100001]
[1765829832683,0.45130521,85894.0,85893.0,0.00400001]
[1765829833064,0.33497406,85894.0,85893.0,0.00100001]
[1765829834125,0.33497406,85894.0,85893.0,0.00200001]
[1765829834816,0.33497406,85894.0,85893.0,0.00100001]
[1765829835014,0.33597406,85894.0,85893.0,0.00100001]
[1765829835398,0.32522965,85894.0,85893.0,0.00100001]
[1765829836015,0.34374965,85894.0,85893.0,0.00100001]
[1765829836232,0.4600808,85894.0,85893.0,0.00100001]
[1765829836430,0.4600808,85894.0,85879.0,0.0001]
[1765829836431,0.52358309,85880.0,85879.0,0.0001]
[1765829836718,0.56386274,85880.0,85879.0,0.0001]
[1765829836920,0.57563274,85880.0,85879.0,0.0001]
[1765829837337,0.56386274,85880.0,85879.0,0.0001]
[1765829837764,0.54534274,85880.0,85879.0,0.0001]
[1765829837970,0.53357274,85880.0,85879.0,0.0001]
[1765829838176,0.54534274,85880.0,85879.0,0.0001]
[1765829840470,0.55711274,85880.0,85879.0,0.0001]
[1765829841031,0.52358309,85880.0,85879.0,0.0001]
[1765829841496,0.23288038,85881.0,85879.0,0.0001]
[1765829842160,0.01164361,85884.0,85880.0,0.04876]
[1765829842366,0.24451177,85886.0,85883.0,0.04876]
[1765829842588,0.24451177,85886.0,85879.0,0.04819429]
[1765829842589,0.23288309,85880.0,85879.0,0.03655]
[1765829842807,0.23288309,85880.0,85879.0,0.03555]
[1765829843019,0.23288309,85880.0,85879.0,0.03655]
[1765829843442,0.23288309,85880.0,85879.0,0.0011]
[1765829844217,0.23288309,85880.0,85879.0,0.03655]
[1765829844619,0.33877343,85880.0,85879.0,0.0011]
[1765829845151,0.33877343,85880.0,85879.0,0.0031]
[1765829845744,0.35054343,85880.0,85879.0,0.0011]
[1765829846304,0.35054343,85880.0,85879.0,0.0001]
[1765829846505,0.33877343,85880.0,85879.0,0.0001]
[1765829846710,0.24287274,85880.0,85879.0,0.0001]
[1765829846933,0.23288309,85880.0,85879.0,0.15197]
[1765829847339,0.24452348,85882.0,85879.0,0.15197]
[1765829847498,0.02163326,85884.0,85881.0,0.04876]
[1765829847705,0.01164374,85883.0,85880.0,0.06766]
[1765829847908,0.23288038,85881.0,85880.0,0.06766]
[1765829848372,0.23288038,85881.0,85880.0,0.11642]
[1765829848845,0.23288309,85880.0,85879.0,0.03655]
[1765829849477,0.23288309,85880.0,85879.0,0.03555]
[1765829849645,0.33877343,85880.0,85879.0,0.03555]
[1765829849845,0.33877343,85880.0,85879.0,0.08431]
[1765829850208,0.23288309,85880.0,85879.0,0.15197]
[1765829850542,0.23288309,85880.0,85879.0,0.0011]
[1765829850742,0.36231343,85880.0,85879.0,0.0011]
[1765829850970,0.35054343,85880.0,85879.0,0.0031]
[1765829851168,0.01164388,85882.0,85879.0,0.15868]
[1765829851415,0.23288309,85880.0,85879.0,0.11048]
[1765829851570,0.23288309,85880.0,85879.0,0.0403]
[1765829851770,0.33877343,85880.0,85879.0,0.0031]
[1765829851979,0.33877343,85880.0,85879.0,0.08519]
[1765829852176,0.33877343,85880.0,85879.0,0.08319]
[1765829852378,0.33877343,85880.0,85879.0,0.15119]
[1765829852595,0.33877343,85880.0,85879.0,0.15019]
[1765829852972,0.33877343,85880.0,85879.0,0.08219]
[1765829853178,0.33877343,85880.0,85879.0,0.03715]
[1765829853377,0.33877343,85880.0,85879.0,0.0001]
[1765829853568,0.33877343,85880.0,85879.0,0.0011]
[1765829853764,0.35054343,85880.0,85879.0,0.0011]
[1765829853976,0.35054343,85880.0,85879.0,0.0021]
[1765829854188,0.35054343,85880.0,85879.0,0.0001]
[1765829855159,0.64124343,85880.0,85879.0,0.0001]
[1765829855569,0.62950326,85869.0,85868.0,4.004e-05]
[1765829855725,0.64127326,85869.0,85868.0,4.004e-05]
[1765829855925,0.65304326,85869.0,85868.0,4.004e-05]
[1765829856566,1.65304326,85869.0,85868.0,4.004e-05]
[1765829856811,1.83012429,85869.0,85868.0,0.00104004]
[1765829857013,1.83012429,85869.0,85868.0,0.00304004]
[1765829857232,1.83012429,85869.0,85830.0,0.24466793]
[1765829857233,0.23299704,85838.0,85826.0,0.03705]
[1765829857372,0.23299704,85838.0,85820.0,0.0025]
[1765829857373,0.56397669,85838.0,85820.0,0.0025]
[1765829857572,0.57574669,85838.0,85820.0,0.0025]
[1765829857786,0.62287055,85838.0,85820.0,0.0025]
[1765829857985,0.7392017,85838.0,85820.0,0.0025]
[1765829858186,0.67288894,85838.0,85820.0,0.0025]
[1765829858402,0.62287055,85838.0,85820.0,0.0025]
[1765829858809,0.60435055,85838.0,85820.0,0.0025]
[1765829859022,0.62287055,85838.0,85837.0,0.0032]
[1765829859439,0.59258055,85838.0,85837.0,0.0002]
[1765829859673,0.27845772,85838.0,85837.0,0.0002]
[1765829859876,0.54442035,85838.0,85837.0,0.0022]
[1765829860178,0.56915606,85838.0,85837.0,0.0022]
[1765829860371,0.59269606,85838.0,85837.0,0.0002]
[1765829860576,0.58092606,85838.0,85837.0,0.0002]
[1765829860768,0.55916641,85838.0,85837.0,0.0002]
[1765829860904,0.67498688,85838.0,85837.0,0.0002]
[1765829861864,0.2907,85838.0,85837.0,0.11324]
[1765829862064,0.30143511,85838.0,85837.0,0.0002]
[1765829862219,0.30143195,85838.0,85837.0,0.0002]
[1765829862629,0.23297049,85848.0,85841.0,0.01164944]
[1765829862630,0.02163814,85848.0,85841.0,0.01164944]
[1765829862841,0.01164849,85848.0,85847.0,0.08209]
[1765829863039,0.02238126,85848.0,85847.0,0.08209]
[1765829863241,0.01073277,85848.0,85847.0,0.08209]
[1765829863440,0.01073277,85848.0,85847.0,0.15009]
[1765829863845,0.11662311,85856.0,85853.0,0.01164781]
[1765829864138,0.01852,85867.0,85853.0,0.01164781]
[1765829864139,0.01073277,85855.0,85854.0,0.068]
[1765829864319,0.01164822,85850.0,85847.0,0.10705]
[1765829864458,0.23296873,85849.0,85847.0,0.10505]
[1765829864667,0.24295838,85849.0,85847.0,0.03705]
[1765829864877,0.24295838,85849.0,85847.0,0.04005]
[1765829865918,0.23298346,85843.0,85842.0,0.03705]
[1765829866308,0.23299704,85838.0,85837.0,0.0002]
[1765829866683,0.33888738,85838.0,85837.0,0.0002]
[1765829866901,0.26548008,85838.0,85837.0,0.0002]
[1765829867107,0.55618008,85838.0,85837.0,0.0002]
[1765829867351,0.70270148,85838.0,85837.0,0.0002]
[1765829867550,0.70270148,85838.0,85837.0,0.0032]
[1765829867757,0.69093148,85838.0,85837.0,0.0002]
[1765829868206,0.58088619,85838.0,85837.0,0.0002]
[1765829868410,0.61117619,85838.0,85837.0,0.0002]
[1765829868813,0.59940619,85838.0,85837.0,0.0012]
[1765829869110,0.61117619,85838.0,85837.0,0.0012]
[1765829871808,0.59940619,85838.0,85837.0,0.0012]
[1765829871986,0.72004448,85838.0,85837.0,0.0002]
[1765829872190,0.72104448,85838.0,85837.0,0.0002]
[1765829872393,0.61217619,85838.0,85837.0,0.0002]
[1765829872986,0.58188619,85838.0,85837.0,0.0002]
[1765829873156,0.60040619,85838.0,85837.0,0.0002]
[1765829873332,0.61217619,85838.0,85837.0,0.0002]
[1765829873699,0.58188619,85838.0,85837.0,0.0002]
[1765829874101,0.60040619,85838.0,85837.0,0.0002]
[1765829874307,0.61041834,85838.0,85837.0,0.0002]
[1765829874512,0.63967077,85838.0,85837.0,0.0002]
[1765829874714,0.001,85838.0,85837.0,0.34623975]
[1765829874921,0.001,85838.0,85837.0,0.3868988]
[1765829875535,0.01164863,85847.0,85844.0,0.01164903]
[1765829875984,0.23297011,85848.0,85846.0,0.08209]
[1765829876162,0.23297011,85848.0,85847.0,0.04504]
[1765829876379,0.23297011,85848.0,85847.0,0.11304]
[1765829876786,0.2329699,85848.0,85847.0,0.11304]
[1765829877135,0.2329699,85848.0,85837.0,0.0002]
[1765829877136,0.23299704,85838.0,85837.0,0.0002]
[1765829877351,0.24298669,85838.0,85837.0,0.0002]
[1765829877559,0.25370665,85838.0,85837.0,0.0002]
[1765829877761,0.25370666,85838.0,85837.0,0.0002]
[1765829877889,0.24371701,85838.0,85837.0,0.0002]
[1765829878092,0.34960735,85838.0,85837.0,0.0002]
[1765829878298,0.33888738,85838.0,85837.0,0.0002]
[1765829878704,0.33888738,85838.0,85837.0,0.0012]
[1765829878906,0.62958738,85838.0,85837.0,0.0012]
[1765829879115,0.66501456,85838.0,85837.0,0.0002]
[1765829879333,0.66501456,85838.0,85837.0,0.0012]
[1765829879739,0.62958738,85838.0,85837.0,0.0012]
[1765829879951,0.66502621,85838.0,85837.0,0.0032]
[1765829880350,0.67679621,85838.0,85837.0,0.0032]
[1765829880552,0.79312736,85838.0,85837.0,0.0032]
[1765829880767,0.66502621,85838.0,85837.0,0.0032]
[1765829881247,0.6660698,85838.0,85837.0,0.0012]
[1765829881492,0.68857367,85838.0,85837.0,0.0022]
[1765829881713,0.68857367,85838.0,85837.0,0.0012]
[1765829882123,0.68957367,85838.0,85837.0,0.0012]
[1765829882330,0.54340971,85838.0,85837.0,0.0012]
[1765829882454,0.53163971,85838.0,85837.0,0.0012]
[1765829882857,0.51986971,85838.0,85837.0,0.0012]
[1765829883475,0.22916971,85838.0,85837.0,0.04986]
[1765829883735,0.001,85838.0,85837.0,0.12279]
[1765829884750,0.01164835,85849.0,85844.0,0.01164903]
[1765829884958,0.01075752,85849.0,85848.0,0.08513]
[1765829885383,0.01075752,85851.0,85849.0,0.23296696]
[1765829885605,0.5,85870.0,85863.0,0.01164646]
[1765829885606,0.01164591,85867.0,85863.0,0.01164646]
[1765829885798,0.23291942,85867.0,85865.0,0.03647]
[1765829886010,0.01164646,85863.0,85860.0,0.03647]
[1765829886247,0.01164713,85858.0,85855.0,0.03647]
[1765829886445,0.23294664,85857.0,85855.0,0.03647]
[1765829886917,0.03635901,85862.0,85857.0,0.04866]
[1765829887125,0.03635901,85862.0,85856.0,0.07293]
[1765829887126,0.03100925,85868.0,85866.0,0.23291917]
[1765829887327,0.27556267,85871.0,85866.0,0.23291917]
[1765829887528,0.53525342,85871.0,85870.0,0.04866]
[1765829887891,0.2907,85871.0,85870.0,0.12159]
[1765829888320,0.5236075,85871.0,85870.0,0.12159]
[1765829888717,0.5236075,85871.0,85870.0,0.04866]
[1765829888926,0.5236075,85871.0,85870.0,0.05066]
[1765829889218,0.5236075,85871.0,85870.0,0.05166]
[1765829889937,0.62949784,85871.0,85870.0,0.003]
[1765829890098,0.5236075,85871.0,85870.0,0.003]
[1765829891068,0.5236075,85871.0,85870.0,0.05166]
[1765829891272,0.5236075,85871.0,85870.0,0.12459]
[1765829891473,0.5236075,85871.0,85870.0,0.05166]
[1765829891623,0.5236075,85871.0,85870.0,0.003]
[1765829891832,0.2907,85871.0,85870.0,0.05166]
[1765829892031,0.39659034,85871.0,85870.0,0.12459]
[1765829892917,0.02471242,85872.0,85870.0,0.39674506]
[1765829893121,0.03100925,85886.0,85883.0,0.01164374]
[1765829893382,0.01164225,85894.0,85885.0,0.04866]
[1765829893383,0.03100925,85888.0,85885.0,0.04866]
[1765829893580,0.23286774,85886.0,85884.0,0.01852]
[1765829894032,0.10589034,85876.0,85874.0,0.01164496]
[1765829894275,0.10589034,85876.0,85874.0,0.24454321]
[1765829894490,0.10589034,85876.0,85875.0,0.12159]
[1765829895247,0.10589034,85882.0,85881.0,0.24452207]
[1765829895455,0.03635535,85889.0,85881.0,0.24452207]
[1765829895456,0.03100925,85890.0,85887.0,0.0116432]
[1765829895660,0.03100925,85892.0,85889.0,0.06030293]
[1765829895863,0.03100925,85892.0,85889.0,0.01164293]
[1765829896062,0.03100925,85892.0,85891.0,0.08513]
[1765829896370,0.26920318,85893.0,85891.0,0.08513]
[1765829896571,0.26920318,85893.0,85892.0,0.12159]
[1765829896776,0.02471242,85893.0,85892.0,0.12159]
[1765829896995,0.03100925,85895.0,85893.0,0.23284715]
[1765829897211,0.03100925,85896.0,85894.0,0.04866]
[1765829897440,0.03100925,85897.0,85894.0,0.08457225]
[1765829897670,0.03100925,85897.0,85895.0,0.23284147]
[1765829897918,0.01074642,85898.0,85897.0,0.232837]